bitfinex-derivatives/quotes_BTCF0:USTF0_20250426
["timestamp","ask_amount","ask_price","bid_price","bid_amount"]
[1745682813556,0.8847055,94396.0,94395.0,0.09327053]
[1745682815059,0.6729,94396.0,94395.0,0.09327053]
[1745682815262,0.8847055,94396.0,94395.0,0.07704]
[1745682815567,0.8847055,94396.0,94395.0,0.09325455]
[1745682817261,0.8847055,94396.0,94395.0,0.09331327]
[1745682818966,0.8847055,94396.0,94395.0,0.09305055]
[1745682823567,0.6729,94396.0,94395.0,0.08305055]
[1745682824363,0.6729,94396.0,94395.0,0.08304675]
[1745682825267,0.8847055,94396.0,94395.0,0.08304675]
[1745682825568,0.8847055,94396.0,94395.0,0.08303797]
[1745682826067,0.8847055,94396.0,94395.0,0.12793797]
[1745682826569,0.8847055,94396.0,94395.0,0.13793797]
[1745682828066,0.8847055,94396.0,94395.0,0.13794353]
[1745682829260,0.3608,94404.0,94403.0,0.2117898]
[1745682829465,0.28,94404.0,94403.0,0.39779333]
[1745682829667,0.28,94404.0,94403.0,0.56039604]
[1745682829969,0.24044001,94404.0,94403.0,0.62309604]
[1745682830171,0.18747121,94404.0,94403.0,0.79109604]
[1745682830767,0.16077121,94404.0,94403.0,0.79109604]
[1745682831767,0.10780958,94404.0,94403.0,0.79078073]
[1745682832172,0.10780958,94404.0,94403.0,0.62278073]
[1745682832568,0.261,94404.0,94403.0,0.62278073]
[1745682833572,0.261,94404.0,94403.0,0.62277591]
[1745682833871,0.261,94404.0,94403.0,0.98357591]
[1745682834569,0.261,94404.0,94403.0,1.15947591]
[1745682835173,0.211,94404.0,94403.0,1.15947591]
[1745682835374,0.211,94404.0,94403.0,1.15951208]
[1745682835975,0.211,94404.0,94403.0,1.02598408]
[1745682837167,0.211,94404.0,94403.0,1.06968408]
[1745682839074,0.211,94404.0,94403.0,0.7089498]
[1745682839279,0.211,94404.0,94403.0,1.0697498]
[1745682839668,0.211,94404.0,94403.0,1.01307509]
[1745682839872,0.2559,94404.0,94403.0,1.01307509]
[1745682842077,0.2559,94404.0,94403.0,1.0130588]
[1745682842577,0.2559,94404.0,94403.0,1.01305841]
[1745682845680,0.2559,94404.0,94403.0,1.01328371]
[1745682845979,0.2559,94404.0,94403.0,0.96958371]
[1745682846877,0.2559,94404.0,94403.0,0.60878371]
[1745682847180,0.2559,94404.0,94403.0,0.96958371]
[1745682847372,0.2559,94404.0,94403.0,0.60878371]
[1745682847577,0.2559,94404.0,94403.0,0.96958371]
[1745682849376,0.2559,94404.0,94403.0,0.9694485]
[1745682850478,0.2559,94404.0,94403.0,0.96947108]
[1745682852284,0.2559,94404.0,94403.0,0.99087366]
[1745682852480,0.2559,94404.0,94403.0,0.93437108]
[1745682852882,0.2559,94404.0,94403.0,0.99087537]
[1745682853182,0.2559,94404.0,94403.0,0.93437108]
[1745682853484,0.2559,94404.0,94403.0,0.99087988]
[1745682860189,0.2559,94404.0,94403.0,0.99099348]
[1745682861989,0.2559,94404.0,94403.0,0.9749986]
[1745682862186,0.2559,94404.0,94403.0,0.99101334]
[1745682867498,0.2559,94404.0,94403.0,0.99105911]
[1745682867794,0.25137077,94404.0,94403.0,0.99105911]
[1745682868391,0.24796353,94404.0,94403.0,0.99105911]
[1745682869698,0.24796353,94404.0,94403.0,0.24256931]
[1745682869899,0.45975113,94404.0,94403.0,0.15306051]
[1745682870789,0.45975113,94404.0,94403.0,0.08306051]
[1745682871192,0.45975113,94404.0,94403.0,0.08296626]
[1745682874000,0.45975113,94404.0,94403.0,0.067]
[1745682874194,0.82055113,94404.0,94403.0,0.067]
[1745682875206,0.45975113,94404.0,94403.0,0.067]
[1745682875406,1.18135113,94404.0,94403.0,0.067]
[1745682886005,1.18135113,94404.0,94403.0,0.08267804]
[1745682887505,1.18135113,94404.0,94403.0,0.08269282]
[1745682890810,1.18135113,94404.0,87900.0,0.2]
[1745682891110,0.66171043,94404.0,94396.0,0.1]
[1745682891306,1.18135313,94404.0,94398.0,0.2118006]
[1745682891506,0.2117899,94403.0,94398.0,0.2118006]
[1745682891712,0.4617899,94403.0,94398.0,0.2118006]
[1745682891912,0.0956,94402.0,94395.0,0.211806]
[1745682892213,0.3608,94396.0,94395.0,0.231806]
[1745682892413,0.6008,94396.0,94395.0,0.231806]
[1745682894015,0.6008,94396.0,94395.0,0.319606]
[1745682894217,0.6008,94396.0,94395.0,0.320606]
[1745682895113,0.6008,94396.0,94395.0,0.366006]
[1745682897717,0.6008,94396.0,94395.0,0.466006]
[1745682902919,0.6008,94396.0,94395.0,0.48230686]
[1745682904323,0.6008,94396.0,94395.0,0.65810686]
[1745682905024,0.6008,94396.0,94395.0,0.65805054]
[1745682907019,0.6485,94396.0,94395.0,0.65805054]
[1745682907324,0.6485,94396.0,94395.0,0.65805234]
[1745682907519,0.6485,94396.0,94395.0,0.44624454]
[1745682907717,0.6485,94396.0,94395.0,0.65805234]
[1745682907916,0.6485,94396.0,94395.0,0.44624454]
[1745682908117,0.6485,94396.0,94395.0,0.40084454]
[1745682909726,0.6485,94396.0,94395.0,0.35384454]
[1745682909926,0.7002,94396.0,94395.0,0.35384454]
[1745682910125,0.7002,94396.0,94395.0,0.62227383]
[1745682910323,0.7002,94396.0,94395.0,0.41046603]
[1745682910528,0.7002,94396.0,94395.0,0.41047825]
[1745682915321,0.7002,94396.0,94395.0,0.41025003]
[1745682915820,0.7002,94396.0,94395.0,0.47721003]
[1745682916020,0.7002,94396.0,94395.0,0.43641003]
[1745682917730,0.7002,94396.0,94395.0,0.43640311]
[1745682921335,0.7002,94396.0,94395.0,0.43631065]
[1745682921842,0.3394,94396.0,94395.0,0.43631065]
[1745682922041,0.7002,94396.0,94395.0,0.43631065]
[1745682925045,0.7002,94396.0,94395.0,0.43630223]
[1745682928537,0.7494,94396.0,94395.0,0.43630223]
[1745682928831,0.7494,94396.0,94395.0,0.43606724]
[1745682929234,0.7494,94396.0,94395.0,0.42038149]
[1745682930235,0.7494,94396.0,94395.0,0.43606484]
[1745682933145,0.3886,94396.0,94395.0,0.43606484]
[1745682933345,0.7494,94396.0,94395.0,0.43606484]
[1745682935844,0.7494,94396.0,94395.0,0.43660698]
[1745682937547,0.7494,94396.0,94395.0,0.43666797]
[1745682939448,0.7494,94396.0,94395.0,0.42038149]
[1745682939647,0.7494,94396.0,94395.0,0.43662658]
[1745682941349,0.7494,94396.0,94395.0,0.43656966]
[1745682941954,0.3886,94396.0,94395.0,0.43656966]
[1745682942253,0.7494,94396.0,94395.0,0.43656966]
[1745682943357,0.7494,94396.0,94395.0,0.43664026]
[1745682947558,0.7494,94396.0,94395.0,0.64844806]
[1745682947559,0.56224311,94396.0,94395.0,0.64844806]
[1745682947862,0.52956866,94396.0,94395.0,0.64844806]
[1745682948057,0.70355949,94396.0,94395.0,0.64844806]
[1745682950560,0.70355949,94396.0,94395.0,0.64864053]
[1745682953561,0.70355949,94396.0,94395.0,0.43683273]
[1745682954455,0.70355949,94396.0,94395.0,0.48743273]
[1745682954965,0.70355949,94396.0,94395.0,0.48751706]
[1745682955962,0.0529376,94421.0,94407.0,0.2117796]
[1745682956159,0.0529376,94421.0,94418.0,0.3608]
[1745682956160,0.27,94421.0,94418.0,0.3608]
[1745682956364,0.21289769,94421.0,94420.0,0.1]
[1745682956665,0.21289769,94421.0,94420.0,0.16653557]
[1745682956666,0.17763919,94421.0,94420.0,0.16653557]
[1745682958366,0.18163919,94421.0,94420.0,0.16653557]
[1745682958767,0.17763919,94421.0,94420.0,0.16653557]
[1745682958967,0.18063919,94421.0,94420.0,0.16653557]
[1745682960466,0.18063919,94421.0,94420.0,0.15]
[1745682961270,0.34863919,94421.0,94420.0,0.07692]
[1745682961572,0.34863919,94421.0,94413.0,0.1]
[1745682961770,0.1048,94420.0,94414.0,0.06692]
[1745682962070,0.3448,94420.0,94414.0,0.08692]
[1745682962268,0.0498,94419.0,94414.0,0.08692]
[1745682962469,0.2898,94419.0,94414.0,0.08692]
[1745682962772,0.1048,94418.0,94414.0,0.08692]
[1745682962970,0.3848,94418.0,94414.0,0.08692]
[1745682963172,0.5528,94418.0,94414.0,0.08692]
[1745682964771,0.5528,94418.0,94415.0,0.01574659]
[1745682964968,0.5528,94418.0,94416.0,0.01574659]
[1745682965167,0.5548,94418.0,94417.0,0.01574659]
[1745682965365,0.5548,94418.0,94417.0,0.015746]
[1745682965972,0.5548,94418.0,94414.0,0.06692]
[1745682966173,0.5548,94418.0,94415.0,0.01579075]
[1745682966372,0.5548,94418.0,94416.0,0.01579075]
[1745682966669,0.5548,94418.0,94417.0,0.01579075]
[1745682968160,0.5558,94418.0,94417.0,0.01579075]
[1745682969861,0.5558,94418.0,94417.0,0.06692]
[1745682970275,0.5558,94418.0,94417.0,0.06492]
[1745682970976,0.5558,94418.0,94417.0,0.04792]
[1745682972078,0.5558,94418.0,94417.0,0.03592]
[1745682972473,0.5558,94418.0,94417.0,0.06688]
[1745682979180,0.9166,94418.0,94417.0,0.06688]
[1745682981668,0.9166,94418.0,94417.0,0.08268308]
[1745682983980,0.9166,94418.0,94417.0,0.30444148]
[1745682984277,0.9166,94418.0,94417.0,0.09280697]
[1745682984678,0.5045,94418.0,94417.0,0.30456537]
[1745682984879,0.4808,94418.0,94417.0,0.50476537]
[1745682985074,0.3128,94418.0,94417.0,0.5047646]
[1745682987277,0.3128,94418.0,94417.0,0.56154876]
[1745682987483,0.3128,94418.0,94417.0,0.50498161]
[1745682988280,0.26630631,94418.0,94417.0,0.50498161]
[1745682988777,0.26630631,94418.0,94417.0,0.29322321]
[1745682989076,0.26630631,94418.0,94417.0,0.29323623]
[1745682989491,0.26630631,94418.0,94417.0,0.34982607]
[1745682992686,0.26630631,94418.0,94417.0,0.3498442]
[1745682992894,0.32120631,94418.0,94417.0,0.3498442]
[1745682994383,0.32120631,94418.0,94417.0,0.4742442]
[1745682998290,0.32120631,94418.0,94417.0,0.47421867]
[1745682999376,0.37490631,94418.0,94417.0,0.47421867]
[1745682999989,0.37490631,94418.0,94417.0,0.4742475]
[1745683002690,0.37490631,94418.0,94417.0,0.4254475]
[1745683003093,0.34265498,94418.0,94417.0,0.4254475]
[1745683003389,0.34165498,94418.0,94417.0,0.4254475]
[1745683004083,0.34165498,94418.0,94417.0,0.4774475]
[1745683007392,0.34165498,94418.0,94417.0,0.47748806]
[1745683009794,0.34165498,94418.0,94417.0,0.68924646]
[1745683010592,0.34165498,94418.0,94417.0,0.63724646]
[1745683010994,0.34165498,94418.0,94417.0,0.42547976]
[1745683011694,0.34165498,94418.0,94417.0,0.42543455]
[1745683012195,0.34165498,94418.0,94417.0,0.36884471]
[1745683013096,0.34165498,94418.0,94417.0,0.36887541]
[1745683013987,0.34165498,94418.0,94417.0,0.42427541]
[1745683014989,0.34165498,94418.0,94417.0,0.48114558]
[1745683015185,0.34165498,94418.0,94417.0,0.69290398]
[1745683015390,0.28795498,94418.0,94417.0,0.69290398]
[1745683015590,0.28489177,94418.0,94417.0,0.69290398]
[1745683016391,0.24525177,94418.0,94417.0,0.69290398]
[1745683016598,0.15710467,94418.0,94417.0,0.69290398]
[1745683016792,0.14918467,94418.0,94417.0,0.69290398]
[1745683019303,0.14918467,94418.0,94417.0,0.51721397]
[1745683020399,0.14918467,94418.0,94417.0,0.73290956]
[1745683021696,0.14918467,94418.0,94417.0,0.46575116]
[1745683021909,0.19988467,94418.0,94417.0,0.46575116]
[1745683022797,0.19988467,94418.0,94417.0,0.25005557]
[1745683023195,0.19988467,94418.0,94417.0,0.46181397]
[1745683023799,0.3476,94418.0,94417.0,0.46181397]
[1745683025211,0.3476,94418.0,94417.0,0.25005557]
[1745683026109,0.3476,94418.0,94417.0,0.24993899]
[1745683026799,0.3476,94418.0,94417.0,0.46169739]
[1745683029110,0.3476,94418.0,94417.0,0.63749739]
[1745683030711,0.2969,94418.0,94417.0,0.63749739]
[1745683031402,0.2969,94418.0,94417.0,0.69099739]
[1745683032413,0.2969,94418.0,94417.0,0.69106679]
[1745683036907,0.28588102,94418.0,94417.0,0.69106679]
[1745683037115,0.28588102,94418.0,94417.0,0.68753899]
[1745683037615,0.28588102,94418.0,94417.0,0.63443899]
[1745683038013,0.28588102,94418.0,94417.0,0.63448639]
[1745683042620,0.28588102,94418.0,94417.0,0.69116779]
[1745683046709,0.28588102,94418.0,94417.0,0.63766779]
[1745683049312,0.28588102,94418.0,94417.0,0.64160498]
[1745683049514,0.28588102,94418.0,94417.0,0.85336338]
[1745683050125,0.45388102,94418.0,94417.0,0.85336338]
[1745683051125,0.28588102,94418.0,94417.0,0.85336338]
[1745683055028,0.27391575,94418.0,94417.0,0.85336338]
[1745683055232,0.27391575,94418.0,94417.0,0.85328338]
[1745683056330,0.27391575,94418.0,94417.0,0.95738338]
[1745683061531,0.27391575,94418.0,94417.0,0.74168779]
[1745683064235,0.27391575,94418.0,94417.0,0.95738338]
[1745683066322,0.27391575,94418.0,94417.0,0.90508338]
[1745683067126,0.27391575,94418.0,94417.0,0.90482584]
[1745683067327,0.26184459,94418.0,94417.0,0.90482584]
[1745683069031,0.26184459,94418.0,94417.0,0.90478421]
[1745683075530,0.24066713,94418.0,94417.0,0.90478421]
[1745683076136,0.24066713,94418.0,94417.0,0.9042359]
[1745683078627,0.29166713,94418.0,94417.0,0.9042359]
[1745683078837,0.29166713,94418.0,94417.0,0.6924775]
[1745683079038,0.29166713,94418.0,94417.0,0.88853539]
[1745683079338,0.29166713,94418.0,94417.0,0.71273539]
[1745683080139,0.24163713,94418.0,94417.0,0.71273539]
[1745683081037,0.24163713,94418.0,94417.0,0.72867471]
[1745683081646,0.24163713,94418.0,94417.0,0.67199331]
[1745683083834,0.24163713,94418.0,94417.0,0.45629772]
[1745683084538,0.24163713,94418.0,94417.0,0.45651966]
[1745683085343,0.24163713,94418.0,94417.0,0.51319029]
[1745683086039,0.23411913,94418.0,94417.0,0.72888588]
[1745683086439,0.23411913,94418.0,94417.0,0.72898746]
[1745683086941,0.23411913,94418.0,94417.0,0.71272462]
[1745683087139,0.23411913,94418.0,94417.0,0.72898746]
[1745683087446,0.23411913,94418.0,94417.0,0.67231683]
[1745683087631,0.23411913,94418.0,94417.0,0.65605399]
[1745683088045,0.23411913,94418.0,94417.0,0.67231205]
[1745683088542,0.23411913,94418.0,94417.0,0.67225243]
[1745683088732,0.23411913,94418.0,94417.0,0.65605399]
[1745683088934,0.21982434,94418.0,94417.0,0.65605399]
[1745683089745,0.21982434,94418.0,94417.0,0.4403584]
[1745683090045,0.21982434,94418.0,94417.0,0.49703002]
[1745683090345,0.21982434,94418.0,94417.0,0.51322853]
[1745683090739,0.21982434,94418.0,94417.0,0.51322864]
[1745683091142,0.38782434,94418.0,94417.0,0.51322864]
[1745683091343,0.38782434,94418.0,94417.0,0.30147024]
[1745683092539,0.38782434,94418.0,94417.0,0.30113946]
[1745683092735,0.38782434,94418.0,94417.0,0.51289786]
[1745683093140,0.21982434,94418.0,94417.0,0.72859345]
[1745683095447,0.21982434,94418.0,94417.0,0.51683505]
[1745683095644,0.21982434,94418.0,94417.0,0.30113946]
[1745683096043,0.21982434,94418.0,94417.0,0.28527162]
[1745683096250,0.2140563,94418.0,94417.0,0.51276119]
[1745683097151,0.3820563,94418.0,94417.0,0.51276119]
[1745683097949,0.3820563,94418.0,94417.0,0.72845678]
[1745683099557,0.3820563,94418.0,94417.0,0.90425678]
[1745683100953,0.3820563,94418.0,94417.0,0.68856119]
[1745683101656,0.3820563,94418.0,94417.0,0.69356119]
[1745683101852,0.3716863,94418.0,94417.0,0.69356119]
[1745683102052,0.2036863,94418.0,94417.0,0.69356119]
[1745683102351,0.2036863,94418.0,94417.0,0.73856119]
[1745683102551,0.2036863,94418.0,94417.0,0.68188957]
[1745683102757,0.2036863,94418.0,94417.0,0.67988957]
[1745683103148,0.2036863,94418.0,94417.0,0.67688957]
[1745683103456,0.2036863,94418.0,94417.0,0.67700094]
[1745683103649,0.2036863,94418.0,94417.0,0.66100094]
[1745683105857,0.2036863,94418.0,94417.0,0.66000094]
[1745683106156,0.2036863,94418.0,94417.0,0.64800094]
[1745683106458,0.2036863,94418.0,94417.0,0.63700094]
[1745683106858,0.2036863,94418.0,94417.0,0.42524254]
[1745683107046,0.19548548,94418.0,94417.0,0.41823134]
[1745683107251,0.32525903,94418.0,94417.0,0.62998974]
[1745683107651,0.32525903,94418.0,94417.0,0.68664532]
[1745683107850,0.32525903,94418.0,94417.0,0.67081398]
[1745683108259,0.15725903,94418.0,94417.0,0.67081398]
[1745683109062,0.15725903,94418.0,94417.0,0.71053398]
[1745683109262,0.15725903,94418.0,94417.0,0.53473398]
[1745683109964,0.15725903,94418.0,94417.0,0.44773398]
[1745683110355,0.15725903,94418.0,94417.0,0.44173398]
[1745683110763,0.15725903,94418.0,94417.0,0.43973398]
[1745683111164,0.32525903,94418.0,94417.0,0.43973398]
[1745683111364,0.32525903,94418.0,94417.0,0.43673398]
[1745683112064,0.32525903,94418.0,94417.0,0.38673398]
[1745683112263,0.15725903,94418.0,94417.0,0.44673398]
[1745683112466,0.15725903,94418.0,94417.0,0.39513398]
[1745683113364,0.15725903,94418.0,94417.0,0.44873398]
[1745683113566,0.15725903,94418.0,94417.0,0.44673398]
[1745683113959,0.15725903,94418.0,94417.0,0.3900784]
[1745683114365,0.15725903,94418.0,94417.0,0.3880784]
[1745683116868,0.15725903,94418.0,94417.0,0.3860784]
[1745683117554,0.15725903,94418.0,94417.0,0.4860784]
[1745683119868,0.15725903,94418.0,94417.0,0.55882256]
[1745683120070,0.32525903,94418.0,94417.0,0.55882256]
[1745683120460,0.32525903,94418.0,94417.0,0.35606416]
[1745683120971,0.32525903,94418.0,94417.0,0.56782256]
[1745683121356,0.32525903,94418.0,94417.0,0.51115924]
[1745683121564,0.32525903,94418.0,94417.0,0.51104778]
[1745683121871,0.32525903,94418.0,94417.0,0.29928938]
[1745683122370,0.32525903,94418.0,94417.0,0.51104778]
[1745683125368,0.32525903,94418.0,94417.0,0.56770328]
[1745683129375,0.32525903,94418.0,94417.0,0.53174488]
[1745683129675,0.32525903,94418.0,94417.0,0.74350328]
[1745683130368,0.29933483,94418.0,94417.0,0.74350328]
[1745683130971,0.29933483,94418.0,94417.0,0.74353638]
[1745683131979,0.29933483,94418.0,94417.0,0.53169798]
[1745683133072,0.29933483,94418.0,94417.0,0.74345638]
[1745683133371,0.29933483,94418.0,94417.0,0.53169798]
[1745683134881,0.29933483,94418.0,94417.0,0.74345638]
[1745683135676,0.29933483,94418.0,94417.0,0.35589798]
[1745683135875,0.29933483,94418.0,94417.0,0.29929798]
[1745683136077,0.29933483,94418.0,94417.0,0.04]
[1745683136281,0.29933483,94418.0,94417.0,0.10664]
[1745683137170,0.29933483,94418.0,94417.0,0.04]
[1745683137372,0.29933483,94418.0,94417.0,0.10664]
[1745683141788,0.29933483,94418.0,94417.0,0.26850893]
[1745683144275,0.29933483,94418.0,94417.0,0.10664]
[1745683147989,0.29933483,94418.0,94417.0,0.12246619]
[1745683148884,0.29933483,94418.0,94417.0,0.28432478]
[1745683151003,0.29933483,94418.0,94417.0,0.28437379]
[1745683154001,0.29933483,94418.0,94417.0,0.28438879]
[1745683154204,0.29933483,94418.0,94417.0,0.49614719]
[1745683155004,0.29933483,94418.0,94417.0,0.55324719]
[1745683155200,0.13133483,94418.0,94417.0,0.55324719]
[1745683155393,0.12852589,94418.0,94417.0,0.55324719]
[1745683155593,0.341,94418.0,94417.0,0.55324719]
[1745683155795,0.341,94418.0,94417.0,0.60854719]
[1745683156594,0.341,94418.0,94417.0,0.4466886]
[1745683157202,0.341,94418.0,94417.0,0.44693331]
[1745683158003,0.341,94418.0,94417.0,0.12277491]
[1745683158198,0.509,94418.0,94417.0,0.12277491]
[1745683159201,0.509,94418.0,94417.0,0.12260941]
[1745683159596,0.509,94418.0,94417.0,0.12248822]
[1745683160702,0.509,94418.0,94417.0,0.12244822]
[1745683162503,0.509,94418.0,94417.0,0.12144822]
[1745683162705,0.509,94418.0,94417.0,0.11944822]
[1745683163104,0.509,94418.0,94417.0,0.28130697]
[1745683163312,0.509,94418.0,94417.0,0.19890697]
[1745683163507,0.509,94418.0,94417.0,0.21890697]
[1745683163708,0.48755512,94418.0,94417.0,0.43066537]
[1745683163905,0.48755512,94418.0,94417.0,0.0666]
[1745683166305,0.48755512,94418.0,94417.0,0.12279564]
[1745683172307,0.44052722,94418.0,94417.0,0.12279564]
[1745683173507,0.44052722,94418.0,94417.0,0.13279564]
[1745683173709,0.44052722,94418.0,94417.0,0.34455404]
[1745683175410,0.44052722,94418.0,94417.0,0.36031393]
[1745683179106,0.27252722,94418.0,94417.0,0.36031393]
[1745683179512,0.27252722,94418.0,94417.0,0.34455404]
[1745683179718,0.27252722,94418.0,94417.0,0.36052189]
[1745683180113,0.44052722,94418.0,94417.0,0.36052189]
[1745683185218,0.44052722,94418.0,94417.0,0.36041103]
[1745683185921,0.44052722,94418.0,94417.0,0.14865263]
[1745683187118,0.27252722,94418.0,94417.0,0.148662]
[1745683190325,0.12136931,94418.0,94417.0,0.148662]
[1745683190615,0.3608,94434.0,94418.0,0.228739]
[1745683190815,0.26,94434.0,94430.0,0.2287319]
[1745683191116,0.26,94434.0,94431.0,0.01586636]
[1745683191313,0.0593,94433.0,94432.0,0.08242636]
[1745683191513,0.7101,94433.0,94432.0,0.08242636]
[1745683191707,0.815996,94433.0,94432.0,0.08242636]
[1745683192115,0.983996,94433.0,94432.0,0.08242636]
[1745683192313,0.983996,94433.0,94416.0,0.3608]
[1745683192617,0.3608,94423.0,94417.0,0.01584282]
[1745683192821,0.6108,94423.0,94417.0,0.00788562]
[1745683193015,0.105908,94422.0,94410.0,0.10225623]
[1745683193219,0.3608,94411.0,94410.0,0.10225623]
[1745683193416,0.6308,94411.0,94410.0,0.06656]
[1745683194115,0.7988,94411.0,94410.0,0.06756]
[1745683196113,0.7988,94411.0,94410.0,0.06656]
[1745683197330,0.7988,94411.0,94410.0,0.07432453]
[1745683199732,0.9129,94411.0,94410.0,0.07432453]
[1745683201231,0.5521,94411.0,94410.0,0.07432453]
[1745683205429,0.5521,94411.0,94410.0,0.00776453]
[1745683205630,0.5521,94411.0,94406.0,0.06656]
[1745683205824,0.3608,94409.0,94406.0,0.06656]
[1745683206032,0.1094,94408.0,94406.0,0.06656]
[1745683206227,0.3794,94408.0,94406.0,0.06656]
[1745683206623,0.38728823,94407.0,94397.0,0.00529675]
[1745683206826,0.3608,94398.0,94397.0,0.00529675]
[1745683207041,0.91216423,94398.0,94397.0,0.00529675]
[1745683207726,0.0529521,94395.0,94385.0,0.0666]
[1745683207933,0.3608,94386.0,94385.0,0.0666]
[1745683208128,0.7688,94386.0,94385.0,0.0666]
[1745683209236,0.37553232,94386.0,94385.0,0.64715917]
[1745683209535,0.17936032,94386.0,94385.0,0.66715917]
[1745683209734,0.09053521,94386.0,94385.0,0.81627697]
[1745683209929,0.21,94405.0,94404.0,0.2117876]
[1745683210126,0.21931668,94405.0,94404.0,0.2783876]
[1745683210527,0.18715968,94405.0,94404.0,0.1359]
[1745683210836,0.54795968,94405.0,94404.0,0.1359]
[1745683211039,0.54795968,94405.0,94404.0,0.0593]
[1745683211933,0.54795968,94405.0,94404.0,0.0603]
[1745683212928,0.54795968,94405.0,94404.0,0.0593]
[1745683213337,0.54795968,94405.0,94402.0,0.0666]
[1745683213535,0.214928,94404.0,94402.0,0.0666]
[1745683213730,0.494928,94404.0,94402.0,0.0666]
[1745683213934,0.105928,94403.0,94402.0,0.0666]
[1745683214126,0.24,94403.0,94402.0,0.0666]
[1745683214333,0.454928,94403.0,94402.0,0.0666]
[1745683215638,0.455928,94403.0,94402.0,0.0666]
[1745683216136,0.35,94403.0,94402.0,0.0666]
[1745683218235,0.349,94403.0,94402.0,0.0666]
[1745683218435,0.35,94403.0,94402.0,0.0666]
[1745683218838,0.349,94403.0,94402.0,0.0666]
[1745683219039,0.35,94403.0,94402.0,0.0666]
[1745683221940,0.349,94403.0,94402.0,0.0666]
[1745683222238,0.35,94403.0,94402.0,0.0666]
[1745683223133,0.7108,94403.0,94402.0,0.08221976]
[1745683224840,0.7118,94403.0,94402.0,0.08241041]
[1745683226033,0.2958,94403.0,94402.0,0.01581041]
[1745683227536,0.6566,94403.0,94402.0,0.01581041]
[1745683227937,0.6546,94403.0,94402.0,0.01581041]
[1745683228134,0.6556,94403.0,94402.0,0.01581041]
[1745683228637,0.6556,94403.0,94402.0,0.01567968]
[1745683230440,0.6556,94403.0,94402.0,0.01574191]
[1745683232151,0.6556,94403.0,94402.0,0.01578189]
[1745683232835,0.2948,94403.0,94402.0,0.01578189]
[1745683233042,0.6018,94403.0,94402.0,0.01578189]
[1745683234235,0.07891,94412.0,94404.0,0.0529467]
[1745683234441,0.15320846,94412.0,94409.0,0.2117755]
[1745683234647,0.09,94412.0,94410.0,0.13018189]
[1745683234846,0.09,94412.0,94411.0,0.08234189]
[1745683235044,0.09,94412.0,94411.0,0.29411379]
[1745683235246,0.09,94412.0,94411.0,0.40851379]
[1745683235442,0.09,94412.0,94411.0,0.19674189]
[1745683235647,0.093,94412.0,94411.0,0.19712569]
[1745683236142,0.093,94412.0,94411.0,0.18096]
[1745683237142,0.093,94412.0,94411.0,0.19684374]
[1745683237543,0.093,94412.0,94411.0,0.13028374]
[1745683239449,0.093,94412.0,94411.0,0.1302612]
[1745683239839,0.148,94412.0,94411.0,0.1302612]
[1745683241247,0.148,94412.0,94411.0,0.13032867]
[1745683246641,0.148,94412.0,94411.0,0.13034384]
[1745683248546,0.148,94412.0,94411.0,0.13026223]
[1745683252140,0.148,94412.0,94411.0,0.13040924]
[1745683253750,0.2063,94412.0,94411.0,0.13040924]
[1745683259453,0.2063,94412.0,94411.0,0.13089866]
[1745683261151,0.2063,94412.0,94411.0,0.13092698]
[1745683261864,0.2063,94412.0,94411.0,0.34269888]
[1745683262750,0.2063,94412.0,94411.0,0.01652698]
[1745683262951,0.31222,94412.0,94400.0,0.28184462]
[1745683263155,0.3608,94401.0,94400.0,0.42184462]
[1745683263357,0.4708,94401.0,94400.0,0.63364122]
[1745683263553,0.4708,94401.0,94400.0,0.4183166]
[1745683264457,0.4718,94401.0,94400.0,0.4183166]
[1745683265555,0.4728,94401.0,94400.0,0.4183166]
[1745683265951,0.4708,94401.0,94400.0,0.4183166]
[1745683266152,0.4728,94401.0,94400.0,0.4183166]
[1745683268051,0.4708,94401.0,94400.0,0.4183166]
[1745683268253,0.4728,94401.0,94400.0,0.4183166]
[1745683271454,0.4708,94401.0,94400.0,0.4183166]
[1745683271655,0.4728,94401.0,94400.0,0.4183166]
[1745683272458,0.4728,94401.0,94400.0,0.3517966]
[1745683276257,0.8336,94401.0,94400.0,0.3517966]
[1745683276955,0.939532,94401.0,94400.0,0.3517966]
[1745683280260,0.8336,94401.0,94400.0,0.3517966]
[1745683284255,0.939532,94401.0,94400.0,0.3517966]
[1745683286762,1.1513263,94401.0,94400.0,0.3517966]
[1745683286963,1.054832,94401.0,94389.0,0.2118196]
[1745683287165,0.2118168,94391.0,94390.0,0.2118181]
[1745683287469,1.13398103,94391.0,94390.0,0.2818181]
[1745683288064,0.211828,94387.0,94386.0,0.2118261]
[1745683288287,0.822628,94387.0,94386.0,0.13]
[1745683288462,1.043876,94387.0,94386.0,0.13]
[1745683289168,1.043876,94387.0,94386.0,0.341828]
[1745683289371,1.045876,94387.0,94386.0,0.341828]
[1745683290871,1.461076,94387.0,94386.0,0.341828]
[1745683291270,1.249248,94387.0,94386.0,0.341828]
[1745683291471,1.4610737,94387.0,94386.0,0.341828]
[1745683291970,1.4610737,94387.0,94386.0,0.13]
[1745683295171,1.4610737,94387.0,94386.0,0.341828]
[1745683295376,1.4610737,94387.0,94386.0,0.13]
[1745683296078,1.1002737,94387.0,94386.0,0.13]
[1745683296261,1.8218737,94387.0,94386.0,0.13]
[1745683296663,1.8218737,94387.0,94386.0,0.341828]
[1745683297776,1.610048,94387.0,94386.0,0.341828]
[1745683297970,1.610048,94387.0,94386.0,0.398228]
[1745683298170,1.610048,94387.0,94386.0,0.622428]
[1745683299067,1.610048,94387.0,94386.0,0.454428]
[1745683300275,1.610048,94387.0,94386.0,0.398228]
[1745683302977,1.610048,94387.0,94386.0,0.1864]
[1745683303177,0.2647905,94386.0,94385.0,0.1348301]
[1745683303371,0.4818334,94386.0,94385.0,0.2248301]
[1745683303577,0.7010814,94386.0,94385.0,0.2248301]
[1745683303872,0.7010814,94386.0,94385.0,0.23284248]
[1745683304078,0.7010814,94386.0,94379.0,0.04330651]
[1745683304273,0.5951334,94386.0,94385.0,0.2118301]
[1745683304475,0.5971334,94386.0,94385.0,0.3518301]
[1745683304672,0.7030814,94386.0,94385.0,0.3518301]
[1745683304978,0.491248,94386.0,94385.0,0.3518301]
[1745683305186,0.3853,94386.0,94385.0,0.3518301]
[1745683307279,0.3853,94386.0,94385.0,0.4699301]
[1745683307581,0.3853,94386.0,94385.0,0.47773663]
[1745683312275,1.1069,94386.0,94385.0,0.47773663]
[1745683315371,1.11214,94386.0,94385.0,0.47773663]